[Event "*** Titled Tuesday Blitz"]
[Site "Chess.com"]
[Date "2019.09.03"]
[Round "7"]
[White "13MiRacLe"]
[Black "Iustin106"]
[Result "0-1"]
[WhiteElo "2680"]
[BlackElo "2502"]
[TimeControl "180+2"]
[EndTime "16:37:56 PDT"]
[Termination "Iustin106 won by resignation"]

1. e4 {[%clk 0:03:01.9]} 1... e6 {[%clk 0:03:00]} 2. d4 {[%clk 0:02:59.8]} 2...
d5 {[%clk 0:03:00.7]} 3. Nd2 {[%clk 0:03:01.1]} 3... c5 {[%clk 0:03:01.3]} 4.
Ngf3 {[%clk 0:03:01.9]} 4... cxd4 {[%clk 0:03:01.4]} 5. Nxd4 {[%clk 0:03:03]}
5... Nc6 {[%clk 0:03:02.3]} 6. Bb5 {[%clk 0:03:04.6]} 6... Bd7 {[%clk
0:03:03.5]} 7. Nxc6 {[%clk 0:03:05.8]} 7... bxc6 {[%clk 0:03:05.4]} 8. Bd3
{[%clk 0:03:07.1]} 8... Bd6 {[%clk 0:02:45.2]} 9. Qe2 {[%clk 0:03:02.5]} 9...
Ne7 {[%clk 0:02:44.4]} 10. Nf3 {[%clk 0:03:00.6]} 10... Ng6 {[%clk 0:02:44.9]}
11. O-O {[%clk 0:02:51.1]} 11... O-O {[%clk 0:02:45.3]} 12. c4 {[%clk
0:02:51.1]} 12... Qc7 {[%clk 0:02:39.5]} 13. Re1 {[%clk 0:02:28.8]} 13... dxc4
{[%clk 0:02:39]} 14. Bxc4 {[%clk 0:02:29.3]} 14... c5 {[%clk 0:02:39.1]} 15. e5
{[%clk 0:02:27.2]} 15... Be7 {[%clk 0:02:37.8]} 16. Ng5 {[%clk 0:02:15.2]} 16...
Bc6 {[%clk 0:02:26.6]} 17. Qh5 {[%clk 0:02:03]} 17... Bxg5 {[%clk 0:02:25.7]}
18. Bxg5 {[%clk 0:02:02]} 18... Qb7 {[%clk 0:02:24.8]} 19. Qh3 {[%clk
0:01:51.1]} 19... Qxb2 {[%clk 0:02:13.6]} 20. Rab1 {[%clk 0:01:52.1]} 20... Qd4
{[%clk 0:02:09.3]} 21. Rbc1 {[%clk 0:01:43.2]} 21... Nf4 {[%clk 0:01:43.4]} 22.
Bxf4 {[%clk 0:01:22.8]} 22... Qxf4 {[%clk 0:01:45.3]} 23. Bd3 {[%clk 0:01:13.3]}
23... h6 {[%clk 0:01:46]} 24. Rxc5 {[%clk 0:01:08.1]} 24... Bd5 {[%clk 0:01:47]}
25. Bb1 {[%clk 0:00:56.3]} 25... Rfc8 {[%clk 0:01:39.6]} 26. Rxc8+ {[%clk
0:00:27.9]} 26... Rxc8 {[%clk 0:01:40.1]} 27. Qd3 {[%clk 0:00:29.5]} 27... Rc1
{[%clk 0:01:36.7]} 28. Rxc1 {[%clk 0:00:20.3]} 28... Qxc1+ {[%clk 0:01:37.1]}
29. Qf1 {[%clk 0:00:22.2]} 29... Qb2 {[%clk 0:01:24.4]} 30. Qd3 {[%clk
0:00:06.2]} 30... Qxe5 {[%clk 0:01:22.1]} 31. h3 {[%clk 0:00:02.8]} 31... g6
{[%clk 0:01:13.7]} 32. Qd1 {[%clk 0:00:02.1]} 32... Kg7 {[%clk 0:01:13.8]} 33.
f3 {[%clk 0:00:02.9]} 33... Qe3+ {[%clk 0:01:13.9]} 34. Kh2 {[%clk 0:00:03.9]}
34... h5 {[%clk 0:01:14.9]} 35. Bd3 {[%clk 0:00:04.3]} 35... h4 {[%clk 0:01:09]}
36. Qc2 {[%clk 0:00:04.5]} 36... Qf4+ {[%clk 0:01:08.3]} 37. Kh1 {[%clk
0:00:05.5]} 37... Qd4 {[%clk 0:01:08.8]} 38. Be2 {[%clk 0:00:05.1]} 38... a5
{[%clk 0:01:09.3]} 39. a3 {[%clk 0:00:05.9]} 39... Qe3 {[%clk 0:01:06.3]} 40. a4
{[%clk 0:00:06]} 40... Qd4 {[%clk 0:01:06.7]} 41. Bb5 {[%clk 0:00:05.8]} 41...
g5 {[%clk 0:01:06.9]} 42. Qc1 {[%clk 0:00:06.1]} 42... Kg6 {[%clk 0:01:06]} 43.
Qc2+ {[%clk 0:00:06.5]} 43... f5 {[%clk 0:01:05.7]} 44. Qc8 {[%clk 0:00:05]}
44... Qg7 {[%clk 0:01:04]} 45. Be8+ {[%clk 0:00:04]} 45... Kh6 {[%clk
0:01:03.9]} 46. Qd8 {[%clk 0:00:04.9]} 46... Qf8 {[%clk 0:00:51.7]} 47. Qd7
{[%clk 0:00:03.7]} 47... g4 {[%clk 0:00:40]} 48. Qd8 {[%clk 0:00:02.6]} 48...
gxf3 {[%clk 0:00:32.7]} 49. Qxh4+ {[%clk 0:00:03.7]} 49... Kg7 {[%clk
0:00:33.6]} 50. Qg5+ {[%clk 0:00:05.2]} 50... Kh8 {[%clk 0:00:35]} 51. Qh5+
{[%clk 0:00:06.3]} 51... Kg8 {[%clk 0:00:35.7]} 52. Qg6+ {[%clk 0:00:06.7]}
52... Qg7 {[%clk 0:00:37]} 53. Bf7+ {[%clk 0:00:02.7]} 53... Kf8 {[%clk
0:00:37.4]} 54. Qxg7+ {[%clk 0:00:03.3]} 54... Kxg7 {[%clk 0:00:38.5]} 55. Be8
{[%clk 0:00:05.2]} 55... fxg2+ {[%clk 0:00:36.5]} 56. Kg1 {[%clk 0:00:06.2]}
56... Kf6 {[%clk 0:00:37.5]} 57. Bb5 {[%clk 0:00:06.1]} 57... Kg5 {[%clk
0:00:38.7]} 58. Be2 {[%clk 0:00:07.6]} 58... Kh4 {[%clk 0:00:39.8]} 59. Kh2
{[%clk 0:00:09.5]} 59... f4 {[%clk 0:00:39.3]} 60. Bg4 {[%clk 0:00:10]} 60... f3
{[%clk 0:00:39.9]} 61. Kg1 {[%clk 0:00:11.2]} 61... e5 {[%clk 0:00:38.1]} 62.
Kf2 {[%clk 0:00:10.6]} 62... e4 {[%clk 0:00:39.1]} 63. Bxf3 {[%clk 0:00:06.6]}
63... exf3 {[%clk 0:00:38.2]} 0-1

[Event "*** Titled Tuesday Blitz"]
[Site "Chess.com"]
[Date "2019.09.03"]
[Round "7"]
[White "Valuebet2000"]
[Black "IMTominho"]
[Result "0-1"]
[WhiteElo "2495"]
[BlackElo "2701"]
[TimeControl "180+2"]
[EndTime "16:38:07 PDT"]
[Termination "IMTominho won by resignation"]

1. e4 {[%clk 0:03:01.9]} 1... e5 {[%clk 0:03:00.1]} 2. Nf3 {[%clk 0:03:01.3]}
2... Nf6 {[%clk 0:03:01.2]} 3. Nxe5 {[%clk 0:03:01.4]} 3... d6 {[%clk
0:03:00.9]} 4. Nf3 {[%clk 0:03:02.6]} 4... Nxe4 {[%clk 0:03:01.8]} 5. d4 {[%clk
0:03:03.8]} 5... d5 {[%clk 0:03:01.5]} 6. Bd3 {[%clk 0:03:05]} 6... Nc6 {[%clk
0:03:02.1]} 7. O-O {[%clk 0:03:05.5]} 7... Be7 {[%clk 0:03:03.3]} 8. c4 {[%clk
0:03:06.5]} 8... Nb4 {[%clk 0:02:54.3]} 9. Be2 {[%clk 0:03:07.2]} 9... O-O
{[%clk 0:02:55.3]} 10. Nc3 {[%clk 0:03:06.8]} 10... Bf5 {[%clk 0:02:55.8]} 11.
a3 {[%clk 0:03:06.1]} 11... Nxc3 {[%clk 0:02:53.7]} 12. bxc3 {[%clk 0:03:06.3]}
12... Nc6 {[%clk 0:02:55.1]} 13. cxd5 {[%clk 0:03:04]} 13... Qxd5 {[%clk
0:02:57]} 14. Bf4 {[%clk 0:02:56]} 14... Bd6 {[%clk 0:02:36.9]} 15. Bxd6 {[%clk
0:02:35.7]} 15... Qxd6 {[%clk 0:02:34.8]} 16. Nd2 {[%clk 0:02:34.9]} 16... Rad8
{[%clk 0:02:27.7]} 17. Bf3 {[%clk 0:02:31.7]} 17... b6 {[%clk 0:02:27.6]} 18.
Nc4 {[%clk 0:02:29.4]} 18... Qg6 {[%clk 0:02:27.4]} 19. Ne3 {[%clk 0:01:59]}
19... Be4 {[%clk 0:02:23.6]} 20. Bxe4 {[%clk 0:01:52.7]} 20... Qxe4 {[%clk
0:02:25.5]} 21. Qa4 {[%clk 0:01:51]} 21... Rfe8 {[%clk 0:02:01.6]} 22. Rfe1
{[%clk 0:01:45.2]} 22... h6 {[%clk 0:01:47.5]} 23. Nc2 {[%clk 0:01:34.8]} 23...
Qg6 {[%clk 0:01:46.4]} 24. Rxe8+ {[%clk 0:01:25.6]} 24... Rxe8 {[%clk
0:01:48.3]} 25. Nb4 {[%clk 0:00:49.1]} 25... Qe4 {[%clk 0:01:44.2]} 26. g3
{[%clk 0:00:49.7]} 26... Na5 {[%clk 0:01:42.8]} 27. Nc2 {[%clk 0:00:40.7]} 27...
Re6 {[%clk 0:01:34.6]} 28. Re1 {[%clk 0:00:37.1]} 28... Qc6 {[%clk 0:01:32.1]}
29. Qb4 {[%clk 0:00:15.4]} 29... Rxe1+ {[%clk 0:01:29.4]} 30. Nxe1 {[%clk
0:00:17.3]} 30... Nc4 {[%clk 0:01:30.7]} 31. Nd3 {[%clk 0:00:16.9]} 31... Nd2
{[%clk 0:01:25]} 32. Ne5 {[%clk 0:00:11.4]} 32... Qe4 {[%clk 0:01:25.5]} 33. Qb5
{[%clk 0:00:10.9]} 33... f6 {[%clk 0:00:57.9]} 34. Nc6 {[%clk 0:00:02.7]} 34...
Nf3+ {[%clk 0:00:49.6]} 35. Kf1 {[%clk 0:00:04]} 35... Nxh2+ {[%clk 0:00:46.2]}
36. Kg1 {[%clk 0:00:05.2]} 36... Nf3+ {[%clk 0:00:46.8]} 37. Kf1 {[%clk
0:00:06.6]} 37... Kh7 {[%clk 0:00:43.3]} 38. Nxa7 {[%clk 0:00:06.7]} 38... Nd2+
{[%clk 0:00:39]} 39. Kg1 {[%clk 0:00:07.3]} 39... Qe1+ {[%clk 0:00:40]} 40. Kg2
{[%clk 0:00:08.1]} 40... Ne4 {[%clk 0:00:41.6]} 41. Qf5+ {[%clk 0:00:06.6]}
41... Kg8 {[%clk 0:00:39.8]} 42. Qe6+ {[%clk 0:00:05.3]} 42... Kf8 {[%clk
0:00:40.4]} 43. Qc8+ {[%clk 0:00:05.1]} 43... Kf7 {[%clk 0:00:41.2]} 44. Qxc7+
{[%clk 0:00:06.2]} 44... Kg6 {[%clk 0:00:42.3]} 45. Qf4 {[%clk 0:00:07.3]} 45...
h5 {[%clk 0:00:39.2]} 46. Nc6 {[%clk 0:00:07.6]} 46... Nd2 {[%clk 0:00:37.9]}
47. Nd8 {[%clk 0:00:03.5]} 47... Qf1+ {[%clk 0:00:20.3]} 48. Kh2 {[%clk
0:00:03.5]} 48... Qe2 {[%clk 0:00:21.8]} 49. Kg2 {[%clk 0:00:03.8]} 49... Ne4
{[%clk 0:00:18.5]} 50. Nc6 {[%clk 0:00:03.5]} 50... Nxc3 {[%clk 0:00:18.4]} 51.
Qf3 {[%clk 0:00:04.7]} 51... Qxf3+ {[%clk 0:00:12.4]} 52. Kxf3 {[%clk
0:00:06.6]} 52... Kf5 {[%clk 0:00:14.3]} 53. Ne7+ {[%clk 0:00:06.9]} 53... Ke6
{[%clk 0:00:14.8]} 54. Nc8 {[%clk 0:00:06.9]} 54... b5 {[%clk 0:00:16.1]} 55.
Nb6 {[%clk 0:00:03.6]} 55... g5 {[%clk 0:00:14.8]} 56. Ke3 {[%clk 0:00:03.1]}
56... Nd5+ {[%clk 0:00:14.6]} 57. Nxd5 {[%clk 0:00:03.6]} 57... Kxd5 {[%clk
0:00:16.5]} 0-1

[Event "*** Titled Tuesday Blitz"]
[Site "Chess.com"]
[Date "2019.09.03"]
[Round "7"]
[White "StoreySniper"]
[Black "DishonorOnYourCow"]
[Result "0-1"]
[WhiteElo "2353"]
[BlackElo "2234"]
[TimeControl "180+2"]
[EndTime "16:38:20 PDT"]
[Termination "DishonorOnYourCow won by resignation"]

1. b4 {[%clk 0:03:01.9]} 1... d5 {[%clk 0:02:58.8]} 2. Bb2 {[%clk 0:03:02.2]}
2... Nf6 {[%clk 0:02:58.9]} 3. Nf3 {[%clk 0:03:02.8]} 3... Bf5 {[%clk
0:02:59.1]} 4. d3 {[%clk 0:03:03.5]} 4... e6 {[%clk 0:02:59.2]} 5. a3 {[%clk
0:03:03.1]} 5... a5 {[%clk 0:02:59.8]} 6. b5 {[%clk 0:03:02.9]} 6... c6 {[%clk
0:02:59.3]} 7. Nbd2 {[%clk 0:02:57]} 7... cxb5 {[%clk 0:02:57]} 8. Nd4 {[%clk
0:02:58.1]} 8... Bg6 {[%clk 0:02:31.5]} 9. Nxb5 {[%clk 0:02:57.9]} 9... Nc6
{[%clk 0:02:24.6]} 10. g3 {[%clk 0:02:44.5]} 10... Bc5 {[%clk 0:02:15.7]} 11.
Bg2 {[%clk 0:02:39.2]} 11... O-O {[%clk 0:02:06.3]} 12. O-O {[%clk 0:02:38.3]}
12... Qb6 {[%clk 0:02:07]} 13. a4 {[%clk 0:02:38.9]} 13... Rac8 {[%clk
0:01:58.8]} 14. Bxf6 {[%clk 0:02:37.7]} 14... gxf6 {[%clk 0:01:59.1]} 15. Nb3
{[%clk 0:02:31.7]} 15... Be7 {[%clk 0:01:53.7]} 16. c3 {[%clk 0:02:26.7]} 16...
Na7 {[%clk 0:01:47.9]} 17. Nxa7 {[%clk 0:02:25.8]} 17... Qxa7 {[%clk 0:01:48.6]}
18. Nd4 {[%clk 0:02:25.6]} 18... Bc5 {[%clk 0:01:33.2]} 19. Nb5 {[%clk
0:02:25.6]} 19... Qb6 {[%clk 0:01:34]} 20. Rb1 {[%clk 0:02:23.6]} 20... Rfd8
{[%clk 0:01:18.8]} 21. h4 {[%clk 0:02:21.1]} 21... Qc6 {[%clk 0:01:12.3]} 22. c4
{[%clk 0:02:15.6]} 22... Qd7 {[%clk 0:01:01.6]} 23. cxd5 {[%clk 0:02:15.4]}
23... exd5 {[%clk 0:01:03.5]} 24. Qd2 {[%clk 0:02:08.5]} 24... Bb4 {[%clk
0:01:02]} 25. Qf4 {[%clk 0:02:03.8]} 25... Rc2 {[%clk 0:00:56.8]} 26. Bf3 {[%clk
0:01:52.2]} 26... Qe7 {[%clk 0:00:48.3]} 27. Rfc1 {[%clk 0:01:46.3]} 27... Bd2
{[%clk 0:00:43.5]} 28. Rxc2 {[%clk 0:01:35.4]} 28... Bxf4 {[%clk 0:00:43.5]} 29.
gxf4 {[%clk 0:01:36.7]} 29... Qd7 {[%clk 0:00:37.5]} 30. h5 {[%clk 0:01:32.4]}
30... Bf5 {[%clk 0:00:35.3]} 31. Kh2 {[%clk 0:01:28]} 31... Kf8 {[%clk
0:00:30.1]} 32. Rc7 {[%clk 0:01:21.6]} 32... Qe8 {[%clk 0:00:29.7]} 33. Nd4
{[%clk 0:01:09]} 33... Bc8 {[%clk 0:00:24.3]} 34. Rb6 {[%clk 0:01:08.3]} 34...
Rd7 {[%clk 0:00:22.6]} 35. Rc5 {[%clk 0:01:02.7]} 35... Qd8 {[%clk 0:00:21.5]}
36. Rbb5 {[%clk 0:00:41]} 36... Rd6 {[%clk 0:00:18.8]} 37. Rxd5 {[%clk
0:00:40.1]} 37... Rxd5 {[%clk 0:00:17.3]} 38. Rxd5 {[%clk 0:00:42]} 38... Qb6
{[%clk 0:00:17.7]} 39. Nb5 {[%clk 0:00:40.2]} 39... Qxf2+ {[%clk 0:00:18.2]} 40.
Bg2 {[%clk 0:00:41]} 40... Qxf4+ {[%clk 0:00:19.2]} 41. Kg1 {[%clk 0:00:41]}
41... Be6 {[%clk 0:00:19.5]} 42. Rd4 {[%clk 0:00:37.7]} 42... Qc1+ {[%clk
0:00:18.5]} 43. Kh2 {[%clk 0:00:38.4]} 43... Qg5 {[%clk 0:00:18.9]} 44. Bf3
{[%clk 0:00:37.5]} 44... Kg7 {[%clk 0:00:17]} 45. Re4 {[%clk 0:00:33.5]} 45...
Qc1 {[%clk 0:00:12.7]} 46. Nd4 {[%clk 0:00:34.1]} 46... Qc7+ {[%clk 0:00:12.3]}
47. Kg2 {[%clk 0:00:34.5]} 47... Qd7 {[%clk 0:00:11.3]} 48. Nxe6+ {[%clk
0:00:29.2]} 48... fxe6 {[%clk 0:00:13.2]} 49. d4 {[%clk 0:00:28.2]} 49... f5
{[%clk 0:00:13.8]} 50. Rh4 {[%clk 0:00:27.2]} 50... Qxa4 {[%clk 0:00:12.1]} 51.
h6+ {[%clk 0:00:28.2]} 51... Kf6 {[%clk 0:00:13]} 52. Kg3 {[%clk 0:00:26.1]}
52... Qd7 {[%clk 0:00:12.8]} 53. Rf4 {[%clk 0:00:25.1]} 53... Qc7 {[%clk
0:00:13.8]} 54. e4 {[%clk 0:00:23.9]} 54... a4 {[%clk 0:00:14.8]} 55. e5+ {[%clk
0:00:25.1]} 55... Kf7 {[%clk 0:00:15.3]} 56. Bh5+ {[%clk 0:00:25.9]} 56... Ke7
{[%clk 0:00:16.2]} 57. Rf3 {[%clk 0:00:23.7]} 57... Qc1 {[%clk 0:00:16.9]} 58.
d5 {[%clk 0:00:21.6]} 58... Qxh6 {[%clk 0:00:17.3]} 59. Rf2 {[%clk 0:00:22.6]}
59... Qxh5 {[%clk 0:00:18.1]} 60. d6+ {[%clk 0:00:24.4]} 60... Kd7 {[%clk
0:00:19.2]} 61. Rc2 {[%clk 0:00:25.6]} 61... Qg5+ {[%clk 0:00:20.3]} 62. Kf2
{[%clk 0:00:27.1]} 62... Qf4+ {[%clk 0:00:21.4]} 63. Ke2 {[%clk 0:00:28.4]}
63... Qe4+ {[%clk 0:00:22.8]} 64. Kd2 {[%clk 0:00:29.4]} 64... f4 {[%clk
0:00:24.1]} 65. Rc7+ {[%clk 0:00:29.7]} 65... Kd8 {[%clk 0:00:25.3]} 66. Rf7
{[%clk 0:00:30]} 66... Qxe5 {[%clk 0:00:26.2]} 67. Rxh7 {[%clk 0:00:29.9]} 67...
Qxd6+ {[%clk 0:00:27.1]} 68. Kc2 {[%clk 0:00:30.6]} 68... Qc6+ {[%clk
0:00:26.7]} 69. Kb2 {[%clk 0:00:32.3]} 69... Qb5+ {[%clk 0:00:27.4]} 70. Ka1
{[%clk 0:00:33.3]} 70... Qe5+ {[%clk 0:00:27.2]} 71. Ka2 {[%clk 0:00:33.8]}
71... Qd5+ {[%clk 0:00:28.4]} 72. Ka1 {[%clk 0:00:34.9]} 72... Qd4+ {[%clk
0:00:29.7]} 73. Ka2 {[%clk 0:00:36.3]} 73... Qc4+ {[%clk 0:00:31]} 74. Ka1
{[%clk 0:00:37.6]} 74... Qc3+ {[%clk 0:00:31.9]} 75. Ka2 {[%clk 0:00:38.8]}
75... Qb3+ {[%clk 0:00:31.7]} 76. Ka1 {[%clk 0:00:40.1]} 76... Qa3+ {[%clk
0:00:33.2]} 77. Kb1 {[%clk 0:00:41.1]} 77... Qd3+ {[%clk 0:00:35.1]} 78. Ka1
{[%clk 0:00:42.4]} 78... Qxh7 {[%clk 0:00:37]} 0-1

[Event "*** Titled Tuesday Blitz"]
[Site "Chess.com"]
[Date "2019.09.03"]
[Round "7"]
[White "novocane"]
[Black "saraswathii"]
[Result "1-0"]
[WhiteElo "2194"]
[BlackElo "2270"]
[TimeControl "180+2"]
[EndTime "16:38:25 PDT"]
[Termination "novocane won by resignation"]

1. d4 {[%clk 0:03:01.8]} 1... Nc6 {[%clk 0:03:00.1]} 2. d5 {[%clk 0:03:03]} 2...
Ne5 {[%clk 0:03:00.7]} 3. f4 {[%clk 0:03:04.7]} 3... Ng6 {[%clk 0:03:01.5]} 4.
e4 {[%clk 0:03:06.5]} 4... e6 {[%clk 0:03:02]} 5. dxe6 {[%clk 0:03:08.4]} 5...
fxe6 {[%clk 0:03:02.7]} 6. Bd3 {[%clk 0:03:09.1]} 6... Nh6 {[%clk 0:03:02.5]} 7.
Nf3 {[%clk 0:03:10]} 7... Bc5 {[%clk 0:03:02.5]} 8. Nc3 {[%clk 0:03:10.4]} 8...
O-O {[%clk 0:03:03.3]} 9. g3 {[%clk 0:03:11.7]} 9... d5 {[%clk 0:02:59.3]} 10.
e5 {[%clk 0:03:10.6]} 10... Ne7 {[%clk 0:02:55.4]} 11. Bd2 {[%clk 0:02:45.5]}
11... Nef5 {[%clk 0:02:51]} 12. Qe2 {[%clk 0:02:43.7]} 12... b6 {[%clk
0:02:46.6]} 13. Ng5 {[%clk 0:02:29.3]} 13... g6 {[%clk 0:02:44.5]} 14. O-O-O
{[%clk 0:02:26.3]} 14... Nf7 {[%clk 0:02:29.9]} 15. Bxf5 {[%clk 0:01:28.3]}
15... gxf5 {[%clk 0:02:14.7]} 16. h4 {[%clk 0:01:13.6]} 16... d4 {[%clk
0:02:09.6]} 17. Qh5 {[%clk 0:00:55.2]} 17... Nxg5 {[%clk 0:02:04.8]} 18. hxg5
{[%clk 0:00:54.2]} 18... Qe7 {[%clk 0:02:04.1]} 19. Ne2 {[%clk 0:00:26.8]} 19...
Bb7 {[%clk 0:01:53.9]} 20. Rh2 {[%clk 0:00:15.3]} 20... Qg7 {[%clk 0:01:40.9]}
21. b4 {[%clk 0:00:15.2]} 21... Be7 {[%clk 0:01:38.8]} 22. Nxd4 {[%clk
0:00:16.6]} 22... Bc8 {[%clk 0:01:32.9]} 23. Nc6 {[%clk 0:00:14.2]} 23... Bd7
{[%clk 0:01:28.2]} 24. Nxe7+ {[%clk 0:00:11]} 24... Qxe7 {[%clk 0:01:28.2]} 25.
g6 {[%clk 0:00:12.5]} 25... Be8 {[%clk 0:01:19.2]} 26. Qxh7+ {[%clk 0:00:08.7]}
26... Qxh7 {[%clk 0:01:18.9]} 27. Rxh7 {[%clk 0:00:08.8]} 27... Bxg6 {[%clk
0:01:18.5]} 28. Rxc7 {[%clk 0:00:10]} 28... Rfc8 {[%clk 0:01:19.3]} 29. Rxc8+
{[%clk 0:00:10.7]} 29... Rxc8 {[%clk 0:01:21.2]} 30. Be3 {[%clk 0:00:10.1]}
30... Bh5 {[%clk 0:01:20.5]} 31. Rd6 {[%clk 0:00:09.6]} 31... Bf3 {[%clk
0:01:17.4]} 32. Rxe6 {[%clk 0:00:08]} 32... Be4 {[%clk 0:01:18.3]} 33. c3 {[%clk
0:00:06.6]} 33... Rxc3+ {[%clk 0:01:18.2]} 34. Kd2 {[%clk 0:00:08.4]} 34... Rc2+
{[%clk 0:01:19.2]} 35. Ke1 {[%clk 0:00:09.5]} 35... Rxa2 {[%clk 0:01:19.8]} 36.
Re7 {[%clk 0:00:09.4]} 36... Kf8 {[%clk 0:01:19.4]} 37. Rc7 {[%clk 0:00:09.6]}
37... Bd3 {[%clk 0:01:04.9]} 38. Bd4 {[%clk 0:00:10.6]} 38... Re2+ {[%clk
0:00:58.9]} 39. Kd1 {[%clk 0:00:11.9]} 39... Re4 {[%clk 0:01:00.3]} 40. Bc3
{[%clk 0:00:12.1]} 40... a6 {[%clk 0:00:59.3]} 41. Kd2 {[%clk 0:00:12.4]} 41...
Bb5 {[%clk 0:00:57.6]} 42. Rb7 {[%clk 0:00:13.3]} 42... Re2+ {[%clk 0:00:58.4]}
43. Kd1 {[%clk 0:00:14.4]} 43... Re3 {[%clk 0:00:59.3]} 44. Kd2 {[%clk
0:00:15.5]} 44... Rd3+ {[%clk 0:01:00.2]} 45. Kc2 {[%clk 0:00:16.9]} 45... Rxg3
{[%clk 0:01:01.1]} 46. Rxb6 {[%clk 0:00:18.3]} 46... Bd3+ {[%clk 0:01:01.8]} 47.
Kb2 {[%clk 0:00:19.6]} 47... Ke7 {[%clk 0:01:02]} 48. b5 {[%clk 0:00:18.7]}
48... axb5 {[%clk 0:00:59.2]} 49. Bb4+ {[%clk 0:00:19.9]} 49... Kd7 {[%clk
0:00:59.1]} 50. Rb7+ {[%clk 0:00:20]} 50... Kc6 {[%clk 0:00:59.3]} 51. Rf7
{[%clk 0:00:18.1]} 51... Bc4 {[%clk 0:01:00.1]} 52. Rf6+ {[%clk 0:00:19.3]}
52... Kd5 {[%clk 0:01:00]} 53. Rd6+ {[%clk 0:00:19.8]} 53... Ke4 {[%clk
0:01:00.5]} 54. Bc3 {[%clk 0:00:20.3]} 54... b4 {[%clk 0:00:55.8]} 55. Rd4+
{[%clk 0:00:21.3]} 55... Ke3 {[%clk 0:00:53.4]} 56. Rxc4 {[%clk 0:00:22.5]}
56... Rg2+ {[%clk 0:00:50.5]} 57. Kb3 {[%clk 0:00:23.1]} 57... bxc3 {[%clk
0:00:51.5]} 58. Kxc3 {[%clk 0:00:23.2]} 58... Rg6 {[%clk 0:00:50.2]} 59. Kb4
{[%clk 0:00:23.3]} 59... Kf3 {[%clk 0:00:42.7]} 60. Kc5 {[%clk 0:00:24.4]} 60...
Rg4 {[%clk 0:00:38.3]} 61. Kd5 {[%clk 0:00:25.5]} 61... Rxf4 {[%clk 0:00:39.4]}
62. Rxf4+ {[%clk 0:00:24.8]} 62... Kxf4 {[%clk 0:00:41.3]} 63. e6 {[%clk
0:00:26.7]} 63... Kg3 {[%clk 0:00:42.6]} 64. e7 {[%clk 0:00:28.2]} 64... f4
{[%clk 0:00:44.5]} 65. e8=Q {[%clk 0:00:29.8]} 65... f3 {[%clk 0:00:46.4]} 66.
Qg8+ {[%clk 0:00:30.9]} 66... Kh2 {[%clk 0:00:46.8]} 67. Qh7+ {[%clk 0:00:31.9]}
67... Kg1 {[%clk 0:00:47.8]} 68. Qg6+ {[%clk 0:00:33.8]} 68... Kf1 {[%clk
0:00:49]} 69. Qd3+ {[%clk 0:00:34.1]} 69... Kg2 {[%clk 0:00:49.3]} 70. Qe4
{[%clk 0:00:32]} 70... Kg3 {[%clk 0:00:50]} 71. Qe3 {[%clk 0:00:30.6]} 71... Kg2
{[%clk 0:00:50.9]} 72. Qg5+ {[%clk 0:00:31.8]} 72... Kh2 {[%clk 0:00:51.2]} 73.
Qh4+ {[%clk 0:00:31.5]} 73... Kg2 {[%clk 0:00:52.1]} 74. Qg4+ {[%clk 0:00:33]}
74... Kf2 {[%clk 0:00:53]} 75. Ke4 {[%clk 0:00:34.1]} 1-0